fUST/lending_fUST_20240531
["ID","MTS","AMOUNT","RATE_DAILY","PERIOD"]
[328305774,1717132242918,-247.707525,0.00024678,2]
[328305775,1717132242928,-247.707525,0.00024678,2]
[328305776,1717132242937,-247.707525,0.00024678,2]
[328305777,1717132242947,-247.707525,0.00024678,2]
[328305778,1717132242956,-247.707525,0.00024678,2]
[328305780,1717132242966,-247.707525,0.00024678,2]
[328305781,1717132242975,-210.301719,0.00024678,2]
[328305782,1717132242985,-210.301719,0.00024678,2]
[328305783,1717132242994,-210.301719,0.00024678,2]
[328305784,1717132243004,-210.301719,0.00024678,2]
[328305785,1717132243013,-210.301719,0.00024678,2]
[328305786,1717132243024,-210.301719,0.00024678,2]
[328305787,1717132243033,-151.0,0.00024678,2]
[328305788,1717132243043,-151.0,0.00024678,2]
[328305789,1717132243052,-151.0,0.00024678,2]
[328305790,1717132243062,-5616.293595,0.00024678,2]
[328305791,1717132243071,-5616.293595,0.00024678,2]
[328305792,1717132243080,-5616.293595,0.00024678,2]
[328305793,1717132243089,-5616.293595,0.00024678,2]
[328305794,1717132243099,-5616.293595,0.00024678,2]
[328305796,1717132243109,-5616.293603,0.00024678,2]
[328305798,1717132243118,-88888.0,0.00024678,3]
[328305800,1717132243128,-340.88630033,0.0002468,2]
[328305802,1717132243137,-12830.91021921,0.000247,2]
[328305803,1717132243146,-461.58335744,0.000247,2]
[328305805,1717132243155,-3985.31374501,0.000247,2]
[328305806,1717132243164,-153.80873,0.000247,2]
[328305807,1717132243173,-164.239378,0.000247,2]
[328305808,1717132243182,-181.388734,0.000247,2]
[328305810,1717132243191,-1798.043374,0.000247,2]
[328305811,1717132243199,-1798.043374,0.000247,2]
[328305812,1717132243208,-1798.043374,0.000247,2]
[328305813,1717132243217,-1798.043374,0.000247,2]
[328305814,1717132243226,-160.097136,0.000247,2]
[328305815,1717132243235,-160.097126,0.000247,2]
[328305816,1717132243244,-247.707525,0.000247,2]
[328305817,1717132243253,-247.707525,0.000247,2]
[328305818,1717132243263,-210.301719,0.000247,2]
[328305819,1717132243272,-210.301714,0.000247,2]
[328305820,1717132243281,-340.88630033,0.00024732,2]
[328305821,1717132243291,-151.0,0.00024755,2]
[328305822,1717132243299,-151.0,0.00024755,2]
[328305824,1717132243308,-151.0,0.00024755,2]
[328305825,1717132243317,-1798.043374,0.00024755,2]
[328305826,1717132243327,-1798.043374,0.00024755,2]
[328305827,1717132243336,-1798.043374,0.00024755,2]
[328305828,1717132243346,-1798.043374,0.00024755,2]
[328305829,1717132243356,-1798.043374,0.00024755,2]
[328305830,1717132243366,-1798.043382,0.00024755,2]
[328305831,1717132243376,-151.0,0.00024756,2]
[328305832,1717132243387,-151.0,0.00024758,2]
[328305833,1717132243396,-151.840821,0.00024758,2]
[328305834,1717132243404,-153.362507,0.00024765,2]
[328305835,1717132243413,-151.0,0.00024766,2]
[328305836,1717132243423,-151.0,0.00024766,2]
[328305837,1717132243431,-153.063891,0.00024766,2]
[328305838,1717132243440,-151.0,0.00024767,2]
[328305839,1717132243449,-151.638605,0.00024767,2]
[328305840,1717132243458,-156.304762,0.00024768,2]
[328305841,1717132243469,-206.37085601,0.0002477,2]
[328305842,1717132243479,-340.88630033,0.00024783,2]
[328305843,1717132243488,-282.0,0.000248,2]
[328305844,1717132243497,-44078.58731247,0.000248,2]
[328305845,1717132243506,-153.0,0.000248,2]
[328305846,1717132243516,-1890.403049,0.000248,2]
[328305847,1717132243526,-155.06002179,0.00024876,2]
[328305848,1717132243535,-261.96966049,0.00024876,2]
[328305849,1717132243545,-382.7424181,0.00024876,2]
[328305850,1717132243554,-235.90566237,0.00024876,2]
[328305851,1717132243563,-173.16519453,0.00024876,2]
[328305852,1717132243573,-1248.15530254,0.00024876,2]
[328305853,1717132243582,-575.68089942,0.00024877,2]
[328305854,1717132243593,-374325.68310777,0.00024878,2]
[328305943,1717132285294,154.92253873,9.999e-05,2]
[328305944,1717132286538,154.92253873,9.999e-05,2]
[328305945,1717132299064,154.92253873,9.999e-05,2]
[328305946,1717132304362,239.21076541,9.999e-05,2]
[328305947,1717132321013,1280.0976559,9.999e-05,2]
[328305948,1717132321829,1585.88694591,9.999e-05,2]
[328305949,1717132332630,1499.09486295,9.999e-05,2]
[328306005,1717133433384,-190.8,0.00017453,2]
[328306006,1717133433393,-190.8,0.00018566,2]
[328306007,1717133433403,-397.1,0.00019392,2]
[328306008,1717133433412,-13.18365063,0.0001968,2]
[328306041,1717133439557,-177.61634937,0.0001968,2]
[328306042,1717133439570,-397.1,0.00020629,3]
[328306043,1717133439580,-7906.8425414,0.00020776,2]
[328306044,1717133439590,-190.8,0.00020793,3]
[328306045,1717133439602,-46.45835423,0.00021866,3]
[328306046,1717133439614,-350.64164577,0.00021866,3]
[328306047,1717133439624,-190.8,0.00021906,3]
[328306048,1717133439634,-166.666666,0.00021918,2]
[328306049,1717133439645,-6938.585321,0.00022061,2]
[328306050,1717133439655,-68.73016216,0.00022153,2]
[328306075,1717133442497,-181.26983784,0.00022153,2]
[328306076,1717133442507,-190.8,0.0002302,3]
[328306077,1717133442516,-397.1,0.00023103,3]
[328306078,1717133442526,-238.36716216,0.000235,2]
[328306079,1717133442538,-761.63283784,0.000235,2]
[328306080,1717133442548,-153.0,0.00023778,2]
[328306081,1717133442557,-312.7821838,0.00023778,2]
[328306082,1717133442567,-153.0000001,0.00023878,2]
[328306083,1717133442577,-153.0,0.00023878,2]
[328306084,1717133442586,-153.0,0.00023878,2]
[328306085,1717133442595,-153.0,0.00023878,2]
[328306086,1717133442605,-153.0,0.00023878,2]
[328306087,1717133442615,-1000.0,0.00024,2]
[328306088,1717133442624,-481.3580805,0.00024061,2]
[328306089,1717133442633,-291.9275846,0.00024061,2]
[328306090,1717133442643,-291.9275846,0.00024061,2]
[328306091,1717133442652,-291.9275846,0.00024061,2]
[328306092,1717133442661,-190.8,0.00024133,5]
[328306093,1717133442671,-155.3541646,0.00024178,2]
[328306094,1717133442681,-154.0014751,0.00024178,2]
[328306095,1717133442691,-418.2732194,0.00024252,2]
[328306096,1717133442700,-397.1,0.0002434,5]
[328306097,1717133442710,-1000.0,0.000245,2]
[328306098,1717133442719,-159.5047838,0.00024517,2]
[328306099,1717133442729,-161.50224245,0.00024629,2]
[328306100,1717133442739,-153.0,0.00024642,2]
[328306101,1717133442748,-153.0,0.00024642,2]
[328306102,1717133442757,-153.0,0.00024642,2]
[328306103,1717133442766,-153.0,0.00024642,2]
[328306104,1717133442776,-306.0,0.00024642,2]
[328306105,1717133442785,-288.47057154,0.00024667,2]
[328306106,1717133442795,-2409.81992475,0.00024678,7]
[328306107,1717133442804,-181.76901976,0.000247,2]
[328306108,1717133442813,-499.84,0.00024758,3]
[328306109,1717133442823,-9076.83285828,0.00024768,3]
[328306152,1717133443996,-385.989009,0.00024768,3]
[328306154,1717133444009,-394.22731001,0.00024768,3]
[328306170,1717133446822,-291.9275846,0.00024061,2]
[328306171,1717133446834,-367.95719347,0.00024768,3]
[328306173,1717133511447,691.43228075,9.999e-05,2]
[328306273,1717134638759,-988.66747009,0.00015,2]
[328306274,1717134638840,-707.7209769,0.00015,2]
[328306275,1717134638851,-163.35253627,0.00018799,2]
[328306278,1717134638861,-150.0,0.000189,2]
[328306279,1717134638873,-2.45448813,0.00019437,2]
[328306285,1717134642054,-944.39208909,0.00018798,2]
[328306286,1717134642064,-229.14551187,0.00019437,2]
[328306287,1717134642073,-1500.0,0.0002,2]
[328306288,1717134642082,-231.6,0.00020285,3]
[328306289,1717134642091,-231.6,0.00021134,3]
[328306290,1717134642101,-231.6,0.00021982,3]
[328306291,1717134642110,-231.6,0.00022831,3]
[328306292,1717134642120,-231.6,0.00023679,5]
[328306293,1717134642129,-1907.01588495,0.0002381,2]
[328306294,1717134642138,-5708.67307396,0.0002383,2]
[328306295,1717134642150,-7387.53805429,0.0002383,2]
[328306302,1717134644163,-8468.88293983,0.0002383,2]
[328306303,1717134644175,-184.69839945,0.0002383,2]
[328306304,1717134644185,-550.89,0.0002384,3]
[328306305,1717134644194,-500.0,0.00023849,2]
[328306306,1717134644203,-500.0,0.00023849,2]
[328306307,1717134644212,-500.0,0.00023849,2]
[328306308,1717134644221,-500.0,0.00023849,2]
[328306309,1717134644230,-299.19080469,0.00023849,2]
[328306310,1717134644239,-500.0,0.00023849,2]
[328306311,1717134644248,-500.0,0.00023849,2]
[328306312,1717134644258,-608.52151325,0.00023849,2]
[328306313,1717134644268,-500.0,0.00023849,2]
[328306314,1717134644277,-500.0,0.00023849,2]
[328306315,1717134644286,-500.0,0.00023849,2]
[328306316,1717134644295,-500.0,0.00023849,2]
[328306317,1717134644305,-500.0,0.00023849,2]
[328306318,1717134644314,-500.0,0.00023849,2]
[328306319,1717134644323,-500.0,0.00023849,2]
[328306320,1717134644332,-500.0,0.00023849,2]
[328306321,1717134644341,-500.0,0.00023849,2]
[328306322,1717134644351,-500.0,0.00023849,2]
[328306323,1717134644361,-500.0,0.00023849,2]
[328306324,1717134644370,-500.0,0.00023849,2]
[328306325,1717134644379,-354.88656051,0.00023849,2]
[328306329,1717134646835,-145.11343949,0.00023849,2]
[328306330,1717134646845,-500.0,0.00023849,2]
[328306331,1717134646857,-436.55529189,0.00023849,2]
[328306332,1717134646866,-500.0,0.00023849,2]
[328306333,1717134646876,-500.0,0.00023849,2]
[328306334,1717134646885,-533.84882651,0.00023849,2]
[328306335,1717134646897,-500.0,0.00023849,2]
[328306336,1717134646910,-278.72734782,0.00023849,2]
[328306337,1717134646938,-221.27265218,0.00023849,2]
[328306338,1717134646947,-189.25672235,0.00023849,2]
[328306342,1717135386629,10000.0,0.000275,30]
[328306343,1717135394128,10000.0,0.000275,30]
[328306344,1717135403351,10000.0,0.000275,30]
[328306345,1717135413204,10000.0,0.000275,30]
[328306346,1717135425715,8162.33554153,0.00019,10]
[328306347,1717135433800,10000.0,0.000275,30]
[328306348,1717135442562,10000.0,0.000275,30]
[328306349,1717135452589,10000.0,0.000275,30]
[328306350,1717135459815,10000.0,0.000275,30]
[328306379,1717135832098,-1837.66445847,0.00019,10]
[328306381,1717135832108,-151.0,0.0002206,3]
[328306382,1717135832119,-151.0,0.00022899,3]
[328306383,1717135832129,-2340.52486525,0.00023632,2]
[328306384,1717135832139,-151.0,0.00023738,5]
[328306385,1717135832149,-204.8553096,0.000238,2]
[328306386,1717135832160,-291.9275846,0.000238,2]
[328306387,1717135832170,-153.0,0.000238,2]
[328306388,1717135832179,-291.9275846,0.000238,2]
[328306389,1717135832188,-153.0,0.000238,2]
[328306390,1717135832198,-153.0,0.000238,2]
[328306391,1717135832217,-153.0,0.000238,2]
[328306392,1717135832229,-181.41790534,0.000238,2]
[328306393,1717135832240,-21.14192103,0.00023849,2]
[328306415,1717135841703,-289.60135662,0.00023849,2]
[328306417,1717135841712,-500.0,0.00023849,2]
[328306419,1717135841722,-500.0,0.00023849,2]
[328306420,1717135841731,-500.0,0.00023849,2]
[328306421,1717135841744,-500.0,0.00023849,2]
[328306422,1717135841754,-500.0,0.00023849,2]
[328306423,1717135841763,-500.0,0.00023849,2]
[328306424,1717135841773,-500.0,0.00023849,2]
[328306425,1717135841783,-500.0,0.00023849,2]
[328306426,1717135841792,-500.0,0.00023849,2]
[328306427,1717135841801,-500.0,0.00023849,2]
[328306428,1717135841811,-500.0,0.00023849,2]
[328306429,1717135841823,-500.0,0.00023849,2]
[328306430,1717135841832,-500.0,0.00023849,2]
[328306431,1717135841843,-500.0,0.00023849,2]
[328306432,1717135841852,-500.0,0.00023849,2]
[328306433,1717135841861,-500.0,0.00023849,2]
[328306434,1717135841871,-500.0,0.00023849,2]
[328306435,1717135841880,-500.0,0.00023849,2]
[328306436,1717135841890,-500.0,0.00023849,2]
[328306437,1717135841899,-500.0,0.00023849,2]
[328306438,1717135841908,-500.0,0.00023849,2]
[328306439,1717135841917,-500.0,0.00023849,2]
[328306440,1717135841927,-500.0,0.00023849,2]
[328306441,1717135841936,-500.0,0.00023849,2]
[328306442,1717135841945,-500.0,0.00023849,2]
[328306443,1717135841955,-500.0,0.00023849,2]
[328306444,1717135841964,-363.61395499,0.00023849,2]
[328306450,1717135843322,-136.38604501,0.00023849,2]
[328306451,1717135843332,-500.0,0.00023849,2]
[328306452,1717135843345,-500.0,0.00023849,2]
[328306453,1717135843354,-500.0,0.00023849,2]
[328306454,1717135843363,-500.0,0.00023849,2]
[328306455,1717135843373,-500.0,0.00023849,2]
[328306456,1717135843382,-500.0,0.00023849,2]
[328306457,1717135843391,-500.0,0.00023849,2]
[328306458,1717135843401,-567.78184747,0.00023849,2]
[328306459,1717135843411,-500.0,0.00023849,2]
[328306460,1717135843420,-500.0,0.00023849,2]
[328306461,1717135843431,-500.0,0.00023849,2]
[328306462,1717135843440,-500.0,0.00023849,2]
[328306463,1717135843450,-500.0,0.00023849,2]
[328306464,1717135843460,-500.0,0.00023849,2]
[328306465,1717135843470,-500.0,0.00023849,2]
[328306466,1717135843480,-500.0,0.00023849,2]
[328306467,1717135843490,-500.0,0.00023849,2]
[328306468,1717135843500,-500.0,0.00023849,2]
[328306469,1717135843509,-500.0,0.00023849,2]
[328306470,1717135843518,-500.0,0.00023849,2]
[328306471,1717135843527,-500.0,0.00023849,2]
[328306472,1717135843537,-500.0,0.00023849,2]
[328306473,1717135843546,-500.0,0.00023849,2]
[328306474,1717135843556,-500.0,0.00023849,2]
[328306475,1717135843565,-2046.78890244,0.0002385,2]
[328306483,1717135846168,-4237.86672,0.0002385,2]
[328306484,1717135846391,-1291.13979722,0.0002385,2]
[328306485,1717135859780,273.37336231,9.9e-05,2]
[328306486,1717135889246,1900.92798858,9.999e-05,2]
[328306487,1717135889832,154.90705577,9.999e-05,2]
[328306488,1717135906725,273.37336231,9.9e-05,2]
[328306489,1717135932498,273.37336231,9.9e-05,2]
[328306490,1717135937103,1000.0,0.00027,30]
[328306491,1717135941596,273.37336231,9.9e-05,2]
[328306492,1717135949849,273.37336231,9.9e-05,2]
[328306493,1717135958410,273.37336231,9.9e-05,2]
[328306494,1717135966815,273.37336231,9.9e-05,2]
[328306495,1717135977048,273.37336231,9.9e-05,2]
[328306535,1717136839921,273.37336231,9.9e-05,2]
[328306536,1717136901357,273.37336231,9.9e-05,2]
[328306537,1717136910188,273.37336231,9.9e-05,2]
[328306538,1717136919494,273.37336231,9.9e-05,2]
[328306643,1717137038327,-1632.34130821,0.00014999,2]
[328306645,1717137038337,-2784.01502179,0.00015,2]
[328306647,1717137038348,-2751.43632946,0.00015,2]
[328306649,1717137038358,-166.666666,0.00021918,2]
[328306651,1717137038368,-270.4325022,0.00022615,2]
[328306653,1717137038377,-6757.95663613,0.00023,2]
[328306655,1717137038386,-9709.26013382,0.0002329,2]
[328306662,1717137038443,-1012.6634499,0.0002329,2]
[328306666,1717137038454,-753.03841191,0.0002329,2]
[328306689,1717137043239,-295.83716802,0.0002329,2]
[328306692,1717137043263,-10461.71240767,0.0002329,2]
[328306694,1717137043282,-294.06682602,0.0002348,2]
[328306695,1717137043302,-4231.65194067,0.0002358,2]
[328306698,1717137043324,-154.940767,0.000237,2]
[328306703,1717137043342,-153.0,0.000237,2]
[328306707,1717137043360,-268.42381821,0.0002373,2]
[328306709,1717137043375,-443.5364437,0.00023778,2]
[328306712,1717137043389,-153.0,0.000238,2]
[328306714,1717137043407,-583.7540008,0.000238,2]
[328306716,1717137043426,-153.0,0.000238,2]
[328306717,1717137043444,-153.0,0.000238,2]
[328306718,1717137043457,-153.0,0.000238,2]
[328306719,1717137043473,-291.9275846,0.000238,2]
[328306720,1717137043488,-153.0,0.000238,2]
[328306721,1717137043503,-306.0,0.000238,2]
[328306722,1717137043518,-291.9275846,0.000238,2]
[328306723,1717137043534,-153.0,0.000238,2]
[328306724,1717137043548,-153.0,0.000238,2]
[328306725,1717137043563,-291.9275846,0.000238,2]
[328306726,1717137043577,-153.0,0.000238,2]
[328306727,1717137043592,-398.91752747,0.00023849,2]
[328306728,1717137043607,-482.55645397,0.00023849,2]
[328306729,1717137043622,-387.5828872,0.00023849,2]
[328306730,1717137043636,-500.0,0.00023849,2]
[328306731,1717137043654,-342.51034487,0.00023849,2]
[328306732,1717137043669,-500.0,0.00023849,2]
[328306733,1717137043683,-500.0,0.00023849,2]
[328306734,1717137043698,-500.0,0.00023849,2]
[328306735,1717137043713,-605.1877868,0.00023849,2]
[328306736,1717137043727,-500.0,0.00023849,2]
[328306737,1717137043741,-500.0,0.00023849,2]
[328306738,1717137043756,-500.0,0.00023849,2]
[328306739,1717137043773,-500.0,0.00023849,2]
[328306740,1717137043788,-500.0,0.00023849,2]
[328306741,1717137043803,-500.0,0.00023849,2]
[328306742,1717137043817,-500.0,0.00023849,2]
[328306743,1717137043832,-500.0,0.00023849,2]
[328306744,1717137043846,-500.0,0.00023849,2]
[328306745,1717137043861,-500.0,0.00023849,2]
[328306746,1717137043876,-500.0,0.00023849,2]
[328306747,1717137043890,-500.0,0.00023849,2]
[328306748,1717137043904,-500.0,0.00023849,2]
[328306749,1717137043920,-500.0,0.00023849,2]
[328306750,1717137043934,-500.0,0.00023849,2]
[328306751,1717137043948,-500.0,0.00023849,2]
[328306752,1717137043961,-500.0,0.00023849,2]
[328306753,1717137043976,-500.0,0.00023849,2]
[328306754,1717137043990,-500.0,0.00023849,2]
[328306756,1717137044003,-500.0,0.00023849,2]
[328306758,1717137044017,-500.0,0.00023849,2]
[328306759,1717137044032,-500.0,0.00023849,2]
[328306760,1717137044041,-369.61195624,0.00023849,2]
[328306761,1717137044051,-500.0,0.00023849,2]
[328306762,1717137044060,-2894.57230147,0.0002385,2]
[328306770,1717137046455,-61368.70296273,0.0002385,2]
[328306772,1717137068803,551.57863063,9.999e-05,2]
[328306773,1717137069441,239.21076541,9.999e-05,2]
[328306775,1717137084407,3378.01944783,9.9e-05,2]
[328306776,1717137094139,1632.50798791,9.999e-05,2]
[328306777,1717137098336,2681.22518882,9.9e-05,2]
[328306778,1717137106428,216.01852232,9.999e-05,2]
[328306780,1717137126298,194.8022931,9.999e-05,2]
[328306781,1717137134269,1153.75711423,9.999e-05,2]
[328306782,1717137143767,273.37336231,9.9e-05,2]
[328306783,1717137153213,156.68407224,9.999e-05,2]
[328306784,1717137154799,273.37336231,9.9e-05,2]
[328306785,1717137163910,273.37336231,9.9e-05,2]
[328306786,1717137173171,273.37336231,9.9e-05,2]
[328306787,1717137181842,273.37336231,9.9e-05,2]
[328306788,1717137190244,273.37336231,9.9e-05,2]
[328306789,1717137199176,273.37336231,9.9e-05,2]
[328306790,1717137207397,273.37336231,9.9e-05,2]
[328306791,1717137209641,154.90705577,9.999e-05,2]
[328306792,1717137215966,273.37336231,9.9e-05,2]
[328306793,1717137226334,273.37336231,9.9e-05,2]
[328306794,1717137233889,273.37336231,9.9e-05,2]
[328306797,1717137243396,273.37336231,9.9e-05,2]
[328306798,1717137252488,273.37336231,9.9e-05,2]
[328306799,1717137262629,273.37336231,9.9e-05,2]
[328306800,1717137271616,273.37336231,9.9e-05,2]
[328306801,1717137281556,273.37336231,9.9e-05,2]
[328306803,1717137290689,273.37336231,9.9e-05,2]
[328306804,1717137300249,273.37336231,9.9e-05,2]
[328306805,1717137308925,273.37336231,9.9e-05,2]
[328306806,1717137317070,273.37336231,9.9e-05,2]
[328306807,1717137325933,273.37336231,9.9e-05,2]
[328306808,1717137335009,273.37336231,9.9e-05,2]
[328306809,1717137343583,273.37336231,9.9e-05,2]
[328306810,1717137351831,273.37336231,9.9e-05,2]
[328306811,1717137360864,273.37336231,9.9e-05,2]
[328306812,1717137369802,273.37336231,9.9e-05,2]
[328306813,1717137378945,273.37336231,9.9e-05,2]
[328306814,1717137388846,273.37336231,9.9e-05,2]
[328306815,1717137397705,273.37336231,9.9e-05,2]
[328306816,1717137406542,273.37336231,9.9e-05,2]
[328306817,1717137414596,273.37336231,9.9e-05,2]
[328306818,1717137422912,273.37336231,9.9e-05,2]
[328306819,1717137432045,273.37336231,9.9e-05,2]
[328306820,1717137441715,273.37336231,9.9e-05,2]
[328306821,1717137450758,273.37336231,9.9e-05,2]
[328306822,1717137458952,273.37336231,9.9e-05,2]
[328306823,1717137467496,273.37336231,9.9e-05,2]
[328306824,1717137476327,273.37336231,9.9e-05,2]
[328306825,1717137485591,273.37336231,9.9e-05,2]
[328306828,1717137495007,273.37336231,9.9e-05,2]
[328306829,1717137503031,273.37336231,9.9e-05,2]
[328306830,1717137513001,273.37336231,9.9e-05,2]
[328306831,1717137522180,273.37336231,9.9e-05,2]
[328306832,1717137531514,273.37336231,9.9e-05,2]
[328306833,1717137540103,273.37336231,9.9e-05,2]
[328306834,1717137548863,273.37336231,9.9e-05,2]
[328306835,1717137557950,273.37336231,9.9e-05,2]
[328306836,1717137567195,273.37336231,9.9e-05,2]
[328306837,1717137575700,273.37336231,9.9e-05,2]
[328306838,1717137585642,273.37336231,9.9e-05,2]
[328306839,1717137594211,273.37336231,9.9e-05,2]
[328306840,1717137603080,273.37336231,9.9e-05,2]
[328306841,1717137611667,273.37336231,9.9e-05,2]
[328306842,1717137620607,273.37336231,9.9e-05,2]
[328306843,1717137628553,273.37336231,9.9e-05,2]
[328306844,1717137637949,273.37336231,9.9e-05,2]
[328306845,1717137647655,273.37336231,9.9e-05,2]
[328306846,1717137655853,273.37336231,9.9e-05,2]
[328306847,1717137665423,273.37336231,9.9e-05,2]
[328306848,1717137674215,273.37336231,9.9e-05,2]
[328306849,1717137683241,273.37336231,9.9e-05,2]
[328306850,1717137692105,273.37336231,9.9e-05,2]
[328306851,1717137701236,273.37336231,9.9e-05,2]
[328306852,1717137710541,273.37336231,9.9e-05,2]
[328306853,1717137717091,158.13988666,9.9e-05,2]
[328306854,1717137718958,223.31931351,9.9e-05,2]
[328306855,1717137719185,273.37336231,9.9e-05,2]
[328306856,1717137727111,273.37336231,9.9e-05,2]
[328306857,1717137736491,273.37336231,9.9e-05,2]
[328306858,1717137745155,273.37336231,9.9e-05,2]
[328306859,1717137753984,273.37336231,9.9e-05,2]
[328306860,1717137763184,273.37336231,9.9e-05,2]
[328306861,1717137766543,3636.73340894,9.9e-05,2]
[328306862,1717137771409,273.37336231,9.9e-05,2]
[328306863,1717137779910,273.37336231,9.9e-05,2]
[328306864,1717137782251,694.68674505,9.9e-05,2]
[328306865,1717137789216,273.37336231,9.9e-05,2]
[328306866,1717137797799,273.37336231,9.9e-05,2]
[328306867,1717137806809,273.37336231,9.9e-05,2]
[328306868,1717137811436,2287.0,0.00024,30]
[328306869,1717137816092,273.37336231,9.9e-05,2]
[328306870,1717137825720,273.37336231,9.9e-05,2]
[328306871,1717137834801,273.37336231,9.9e-05,2]
[328306872,1717137843095,273.37336231,9.9e-05,2]
[328306874,1717137852659,273.37336231,9.9e-05,2]
[328306875,1717137860684,273.37336231,9.9e-05,2]
[328306876,1717137869340,273.37336231,9.9e-05,2]
[328306877,1717137878247,273.37336231,9.9e-05,2]
[328306878,1717137887344,273.37336231,9.9e-05,2]
[328306879,1717137896141,273.37336231,9.9e-05,2]
[328306880,1717137905314,273.37336231,9.9e-05,2]
[328306881,1717137914657,273.37336231,9.9e-05,2]
[328306884,1717137923172,273.37336231,9.9e-05,2]
[328306885,1717137932022,273.37336231,9.9e-05,2]
[328306887,1717137941161,273.37336231,9.9e-05,2]
[328306888,1717137949983,273.37336231,9.9e-05,2]
[328306893,1717137960127,273.37336231,9.9e-05,2]
[328306894,1717137968928,273.37336231,9.9e-05,2]
[328306895,1717138039605,273.37336231,9.9e-05,2]
[328306957,1717138232643,-2033.82676521,0.00018898,2]
[328306958,1717138232652,-154.90705577,0.00018899,2]
[328306959,1717138232662,-150.0,0.000189,2]
[328306960,1717138232672,-7831.30459828,0.0002,2]
[328306961,1717138232684,-275.16646237,0.0002,2]
[328306962,1717138232695,-1352.96492829,0.00021748,2]
[328306963,1717138232705,-1721.52485787,0.00021749,2]
[328306964,1717138232714,-19726.1667431,0.00021838,2]
[328306965,1717138232723,-166.666666,0.00021918,2]
[328306966,1717138232732,-2984.9702511,0.00022471,2]
[328306967,1717138232742,-166.666666,0.00022773,2]
[328306968,1717138232751,-1175.26050028,0.00023,2]
[328306969,1717138232760,-153.0,0.00023078,2]
[328306970,1717138232770,-153.0,0.00023078,2]
[328306971,1717138232780,-267.0886936,0.00023378,2]
[328306972,1717138232790,-153.0,0.00023578,2]
[328306973,1717138232799,-151.643,0.00023596,2]
[328306974,1717138232809,-166.666666,0.00023627,2]
[328306975,1717138232818,-181.50168259,0.000237,4]
[328306976,1717138232828,-291.9275846,0.000237,2]
[328306977,1717138232837,-4231.65194067,0.0002383,2]
[328306978,1717138232846,-2601.16474277,0.0002385,2]
[328306980,1717138232859,-481.61083671,0.0002385,2]
[328306981,1717138232868,-1000.0,0.00024,8]
[328306982,1717138232877,-384.35180213,0.00024,2]
[328306983,1717138232888,-620.59726549,0.00024,2]
[328306984,1717138232898,-1721.85070871,0.00024,2]
[328306985,1717138232908,-2950.75573272,0.00024,2]
[328306991,1717138238548,-2384.37955258,0.00024,2]
[328306993,1717138238558,-348.21236813,0.0002401,2]
[328306994,1717138238567,-160.49026021,0.00024452,2]
[328306995,1717138238577,-166.666666,0.00024482,2]
[328306996,1717138238586,-204.0,0.0002449,7]
[328306997,1717138238596,-153.0,0.00024574,2]
[328306998,1717138238609,-153.0,0.00024574,2]
[328306999,1717138238619,-153.0,0.00024574,2]
[328307000,1717138238628,-153.0,0.00024574,2]
[328307001,1717138238639,-153.0,0.00024574,2]
[328307002,1717138238648,-153.0,0.00024574,2]
[328307003,1717138238657,-153.0,0.00024574,2]
[328307004,1717138238667,-445.88720403,0.00024624,2]
[328307005,1717138238677,-307.40240579,0.00024627,2]
[328307006,1717138238686,-560.26542078,0.00024657,2]
[328307007,1717138238698,-200.0,0.00024658,2]
[328307008,1717138238707,-153.0,0.00024658,2]
[328307009,1717138238717,-153.0,0.00024658,2]
[328307010,1717138238726,-153.0,0.00024658,2]
[328307011,1717138238735,-445.88720399,0.00024666,2]